[Event "*** Titled Tuesday Blitz"]
[Site "Chess.com"]
[Date "2020.05.26"]
[Round "10"]
[White "NefeLV"]
[Black "HrvojeZagreb"]
[Result "0-1"]
[WhiteElo "1793"]
[BlackElo "2156"]
[TimeControl "180+1"]
[EndTime "12:03:17 PDT"]
[Termination "HrvojeZagreb won by checkmate"]

1. c4 {[%clk 0:03:00.9]} 1... e5 {[%clk 0:02:57.3]} 2. Nc3 {[%clk 0:02:58.4]}
2... d6 {[%clk 0:02:57.5]} 3. Nf3 {[%clk 0:02:56.1]} 3... f5 {[%clk 0:02:57.6]}
4. e4 {[%clk 0:02:53.7]} 4... Nf6 {[%clk 0:02:57.2]} 5. Bd3 {[%clk 0:02:48.9]}
5... f4 {[%clk 0:02:52.5]} 6. Bc2 {[%clk 0:02:47.3]} 6... c5 {[%clk 0:02:50.6]}
7. Nd5 {[%clk 0:02:40.7]} 7... Nc6 {[%clk 0:02:48]} 8. O-O {[%clk 0:02:39.8]}
8... Bg4 {[%clk 0:02:34.7]} 9. h3 {[%clk 0:02:36.3]} 9... Bh5 {[%clk 0:02:34.7]}
10. g4 {[%clk 0:02:30.9]} 10... fxg3 {[%clk 0:02:35.6]} 11. fxg3 {[%clk
0:02:30.9]} 11... Nd4 {[%clk 0:02:29.4]} 12. g4 {[%clk 0:02:28.6]} 12... Nxc2
{[%clk 0:02:25.1]} 13. Qxc2 {[%clk 0:02:26.5]} 13... Bg6 {[%clk 0:02:24.9]} 14.
Qa4+ {[%clk 0:02:21.3]} 14... Nd7 {[%clk 0:02:10.9]} 15. d3 {[%clk 0:02:16.8]}
15... Be7 {[%clk 0:02:06.7]} 16. b4 {[%clk 0:02:04.5]} 16... O-O {[%clk
0:02:04.5]} 17. bxc5 {[%clk 0:02:03.7]} 17... Nxc5 {[%clk 0:02:05.1]} 18. Qb5
{[%clk 0:01:58.2]} 18... b6 {[%clk 0:01:54.9]} 19. Nxe7+ {[%clk 0:01:42.9]}
19... Qxe7 {[%clk 0:01:53.8]} 20. Bg5 {[%clk 0:01:43.5]} 20... Qe6 {[%clk
0:01:46.9]} 21. Rad1 {[%clk 0:01:41.3]} 21... h5 {[%clk 0:01:45.7]} 22. Nh2
{[%clk 0:01:23.4]} 22... Rxf1+ {[%clk 0:01:32.1]} 23. Kxf1 {[%clk 0:01:20.8]}
23... Rf8+ {[%clk 0:01:28.5]} 24. Kg2 {[%clk 0:01:18.1]} 24... Nxd3 {[%clk
0:01:20.6]} 25. Qd5 {[%clk 0:01:02.8]} 25... Qxd5 {[%clk 0:01:13.6]} 26. exd5
{[%clk 0:00:59.8]} 26... Rf2+ {[%clk 0:01:08.8]} 27. Kg3 {[%clk 0:00:58.2]}
27... Rxa2 {[%clk 0:00:59.3]} 28. gxh5 {[%clk 0:00:57.3]} 28... Bh7 {[%clk
0:00:56.3]} 29. Ng4 {[%clk 0:00:45.2]} 29... Rc2 {[%clk 0:00:28.9]} 30. h6
{[%clk 0:00:41.1]} 30... Rxc4 {[%clk 0:00:15]} 31. hxg7 {[%clk 0:00:40.5]} 31...
Kxg7 {[%clk 0:00:11.8]} 32. Bh6+ {[%clk 0:00:34.2]} 32... Kf7 {[%clk 0:00:07.2]}
33. Rf1+ {[%clk 0:00:30.7]} 33... Nf4 {[%clk 0:00:07.4]} 34. Ne3 {[%clk
0:00:23.6]} 34... Rc3 {[%clk 0:00:07]} 35. Kf2 {[%clk 0:00:19.2]} 35... a5
{[%clk 0:00:04.4]} 36. Bg5 {[%clk 0:00:14.1]} 36... Be4 {[%clk 0:00:04]} 37. h4
{[%clk 0:00:13]} 37... a4 {[%clk 0:00:03.2]} 38. Bxf4 {[%clk 0:00:11.1]} 38...
exf4 {[%clk 0:00:03]} 39. h5 {[%clk 0:00:12]} 39... fxe3+ {[%clk 0:00:02.4]} 40.
Ke2+ {[%clk 0:00:11.1]} 40... Kg8 {[%clk 0:00:03.3]} 41. Rf6 {[%clk 0:00:10.1]}
41... Bxd5 {[%clk 0:00:03.3]} 42. Rxd6 {[%clk 0:00:09.6]} 42... Bc4+ {[%clk
0:00:04.2]} 43. Kd1 {[%clk 0:00:08.7]} 43... e2+ {[%clk 0:00:05.1]} 44. Ke1
{[%clk 0:00:07.2]} 44... Rc1+ {[%clk 0:00:06]} 45. Kd2 {[%clk 0:00:06.9]} 45...
e1=Q# {[%clk 0:00:05.9]} 0-1

[Event "*** Titled Tuesday Blitz"]
[Site "Chess.com"]
[Date "2020.05.26"]
[Round "10"]
[White "Crazy_girl99"]
[Black "Cambek64"]
[Result "1-0"]
[WhiteElo "2406"]
[BlackElo "2289"]
[TimeControl "180+1"]
[EndTime "12:03:18 PDT"]
[Termination "Crazy_girl99 won by resignation"]

1. Nf3 {[%clk 0:03:00.9]} 1... d5 {[%clk 0:02:59.1]} 2. g3 {[%clk 0:02:59.5]}
2... c6 {[%clk 0:02:59.4]} 3. Bg2 {[%clk 0:02:59.1]} 3... Nf6 {[%clk 0:02:59.9]}
4. d4 {[%clk 0:02:59.1]} 4... Bf5 {[%clk 0:02:59.2]} 5. O-O {[%clk 0:02:59.3]}
5... e6 {[%clk 0:02:58.9]} 6. b3 {[%clk 0:02:57.7]} 6... h6 {[%clk 0:02:59]} 7.
Bb2 {[%clk 0:02:56.7]} 7... Nbd7 {[%clk 0:02:58.6]} 8. Nbd2 {[%clk 0:02:50.9]}
8... Be7 {[%clk 0:02:58.7]} 9. c4 {[%clk 0:02:50]} 9... O-O {[%clk 0:02:58.9]}
10. Rc1 {[%clk 0:02:48.1]} 10... Ne4 {[%clk 0:02:58.6]} 11. e3 {[%clk
0:02:44.4]} 11... a5 {[%clk 0:02:58.4]} 12. Ne1 {[%clk 0:02:41.6]} 12... a4
{[%clk 0:02:35.2]} 13. Nxe4 {[%clk 0:02:33.6]} 13... Bxe4 {[%clk 0:02:26.4]} 14.
Bxe4 {[%clk 0:02:32.2]} 14... dxe4 {[%clk 0:02:26.7]} 15. Ng2 {[%clk 0:02:24.5]}
15... axb3 {[%clk 0:02:21.9]} 16. axb3 {[%clk 0:02:25.4]} 16... Ra2 {[%clk
0:02:14.9]} 17. Bc3 {[%clk 0:02:25]} 17... Nf6 {[%clk 0:02:12.5]} 18. Nf4 {[%clk
0:02:23.6]} 18... b5 {[%clk 0:02:03.6]} 19. Rc2 {[%clk 0:02:17.7]} 19... Qa8
{[%clk 0:01:59.3]} 20. Qd2 {[%clk 0:02:15.4]} 20... Rxc2 {[%clk 0:01:56.1]} 21.
Qxc2 {[%clk 0:02:16.3]} 21... bxc4 {[%clk 0:01:56.2]} 22. bxc4 {[%clk
0:02:15.1]} 22... Qa6 {[%clk 0:01:54.8]} 23. Qb3 {[%clk 0:02:08.1]} 23... Bd6
{[%clk 0:01:50.4]} 24. Ra1 {[%clk 0:02:06.5]} 24... Qc8 {[%clk 0:01:43.1]} 25.
Ne2 {[%clk 0:02:05]} 25... Qc7 {[%clk 0:01:39.5]} 26. Ba5 {[%clk 0:01:58.1]}
26... Qd7 {[%clk 0:01:36.6]} 27. Bb6 {[%clk 0:01:53.8]} 27... Rb8 {[%clk
0:01:34.5]} 28. c5 {[%clk 0:01:52.5]} 28... Nd5 {[%clk 0:01:31.3]} 29. Nc3
{[%clk 0:01:45.5]} 29... Nxc3 {[%clk 0:01:08]} 30. Qxc3 {[%clk 0:01:44.2]} 30...
Bf8 {[%clk 0:01:06.5]} 31. Ra7 {[%clk 0:01:40.1]} 31... Rb7 {[%clk 0:01:04.4]}
32. Ra8 {[%clk 0:01:38.5]} 32... f5 {[%clk 0:00:56.9]} 33. Rd8 {[%clk
0:01:35.4]} 33... Qf7 {[%clk 0:00:51.8]} 34. Qa5 {[%clk 0:01:34.4]} 34... Kh7
{[%clk 0:00:51.1]} 35. Qa8 {[%clk 0:01:30]} 35... Qh5 {[%clk 0:00:50.6]} 36. Qa4
{[%clk 0:01:16.9]} 36... Be7 {[%clk 0:00:45.4]} 37. Rc8 {[%clk 0:01:15.3]} 37...
e5 {[%clk 0:00:21.4]} 38. Qb3 {[%clk 0:01:09.4]} 38... Qe2 {[%clk 0:00:13.7]}
39. Qg8+ {[%clk 0:00:59.5]} 39... Kg6 {[%clk 0:00:13.1]} 40. Rxc6+ {[%clk
0:00:59.5]} 40... Bf6 {[%clk 0:00:11.9]} 41. Qb3 {[%clk 0:00:52.8]} 41... exd4
{[%clk 0:00:10.4]} 42. exd4 {[%clk 0:00:53.7]} 42... Rd7 {[%clk 0:00:09.5]} 43.
Rxf6+ {[%clk 0:00:43.8]} 43... Kxf6 {[%clk 0:00:08]} 44. c6 {[%clk 0:00:44.1]}
44... Qd3 {[%clk 0:00:02.4]} 45. Qxd3 {[%clk 0:00:39.2]} 45... exd3 {[%clk
0:00:02.3]} 46. cxd7 {[%clk 0:00:39.8]} 46... d2 {[%clk 0:00:01.8]} 47. d8=Q+
{[%clk 0:00:39.6]} 47... Kg6 {[%clk 0:00:02.2]} 48. Qe8+ {[%clk 0:00:37.1]}
48... Kf6 {[%clk 0:00:03.1]} 49. Qe2 {[%clk 0:00:37.2]} 49... Kg6 {[%clk
0:00:04]} 50. Qxd2 {[%clk 0:00:37.2]} 50... Kh7 {[%clk 0:00:04.9]} 51. d5 {[%clk
0:00:37.8]} 1-0

[Event "*** Titled Tuesday Blitz"]
[Site "Chess.com"]
[Date "2020.05.26"]
[Round "10"]
[White "GMStefanova"]
[Black "bazar-wokzal"]
[Result "1-0"]
[WhiteElo "2632"]
[BlackElo "2469"]
[TimeControl "180+1"]
[EndTime "12:03:19 PDT"]
[Termination "GMStefanova won by resignation"]

1. d4 {[%clk 0:03:00.9]} 1... Nf6 {[%clk 0:02:58.9]} 2. Nf3 {[%clk 0:03:00.8]}
2... e6 {[%clk 0:02:57.2]} 3. e3 {[%clk 0:03:00.9]} 3... c5 {[%clk 0:02:56.6]}
4. Bd3 {[%clk 0:02:59.1]} 4... b6 {[%clk 0:02:56.8]} 5. b3 {[%clk 0:02:57.7]}
5... Bb7 {[%clk 0:02:56.9]} 6. O-O {[%clk 0:02:57]} 6... Be7 {[%clk 0:02:56.8]}
7. c4 {[%clk 0:02:54.8]} 7... d6 {[%clk 0:02:56.5]} 8. Nc3 {[%clk 0:02:51.5]}
8... Nbd7 {[%clk 0:02:56.6]} 9. Bb2 {[%clk 0:02:47.2]} 9... a6 {[%clk
0:02:55.3]} 10. a4 {[%clk 0:02:45]} 10... Qc7 {[%clk 0:02:54.7]} 11. Re1 {[%clk
0:02:41.9]} 11... h6 {[%clk 0:02:53.8]} 12. h3 {[%clk 0:02:29.4]} 12... g5
{[%clk 0:02:52.9]} 13. e4 {[%clk 0:02:15.3]} 13... g4 {[%clk 0:02:45.1]} 14.
hxg4 {[%clk 0:02:14.6]} 14... Nxg4 {[%clk 0:02:44.9]} 15. d5 {[%clk 0:02:11.3]}
15... e5 {[%clk 0:02:41.9]} 16. Ne2 {[%clk 0:02:03.3]} 16... Rg8 {[%clk
0:02:37.3]} 17. Ng3 {[%clk 0:02:00.7]} 17... Nf8 {[%clk 0:02:31.2]} 18. a5
{[%clk 0:01:54.4]} 18... bxa5 {[%clk 0:02:20.5]} 19. Bc3 {[%clk 0:01:51.2]}
19... Bc8 {[%clk 0:02:20.5]} 20. Bxa5 {[%clk 0:01:49.5]} 20... Qd7 {[%clk
0:02:13.9]} 21. Nf5 {[%clk 0:01:42.6]} 21... Qb7 {[%clk 0:02:08.3]} 22. b4
{[%clk 0:01:37.2]} 22... Bxf5 {[%clk 0:02:05]} 23. exf5 {[%clk 0:01:36.9]} 23...
cxb4 {[%clk 0:01:56.8]} 24. Qa4+ {[%clk 0:01:33.5]} 24... Nd7 {[%clk 0:01:49.3]}
25. c5 {[%clk 0:01:31.8]} 25... dxc5 {[%clk 0:01:46.1]} 26. d6 {[%clk
0:01:30.8]} 26... Bxd6 {[%clk 0:01:41.7]} 27. Be4 {[%clk 0:01:29.8]} 27... Qa7
{[%clk 0:01:36.5]} 28. Bxa8 {[%clk 0:01:25.3]} 28... Qxa8 {[%clk 0:01:36.3]} 29.
Rad1 {[%clk 0:01:21.7]} 29... Qb8 {[%clk 0:01:29.3]} 30. Qc6 {[%clk 0:01:10.3]}
30... Ke7 {[%clk 0:01:28.9]} 31. Re2 {[%clk 0:00:55.9]} 31... Rc8 {[%clk
0:01:26.9]} 32. Qxa6 {[%clk 0:00:55]} 32... Bc7 {[%clk 0:00:59.7]} 33. Red2
{[%clk 0:00:44.8]} 33... Ngf6 {[%clk 0:00:56.1]} 34. Bxc7 {[%clk 0:00:40.6]}
34... Qxc7 {[%clk 0:00:55]} 35. Rd6 {[%clk 0:00:37.5]} 35... b3 {[%clk
0:00:42.7]} 36. Nxe5 {[%clk 0:00:35.4]} 36... Nxe5 {[%clk 0:00:38.9]} 37. Rxf6
{[%clk 0:00:35.1]} 37... b2 {[%clk 0:00:38.4]} 38. Rb6 {[%clk 0:00:22.1]} 38...
Rb8 {[%clk 0:00:34.6]} 39. Rxb8 {[%clk 0:00:14.8]} 39... Qxb8 {[%clk 0:00:34.5]}
40. f6+ {[%clk 0:00:13.8]} 40... Kf8 {[%clk 0:00:26.1]} 41. Qb7 {[%clk
0:00:13.2]} 41... Qe8 {[%clk 0:00:17.6]} 42. Qxb2 {[%clk 0:00:11.8]} 42... Kg8
{[%clk 0:00:17.4]} 43. Qc3 {[%clk 0:00:10.9]} 43... Qe6 {[%clk 0:00:10.4]} 44.
Re1 {[%clk 0:00:10.1]} 44... Nf3+ {[%clk 0:00:09]} 45. gxf3 {[%clk 0:00:10]} 1-0

[Event "*** Titled Tuesday Blitz"]
[Site "Chess.com"]
[Date "2020.05.26"]
[Round "10"]
[White "zmeeed67"]
[Black "Colombiano07"]
[Result "0-1"]
[WhiteElo "2439"]
[BlackElo "2305"]
[TimeControl "180+1"]
[EndTime "12:03:19 PDT"]
[Termination "Colombiano07 won by checkmate"]

1. d4 {[%clk 0:03:00.9]} 1... d5 {[%clk 0:03:00]} 2. c4 {[%clk 0:03:01.2]} 2...
Bf5 {[%clk 0:03:00.7]} 3. cxd5 {[%clk 0:03:00.6]} 3... Bxb1 {[%clk 0:03:00]} 4.
Qa4+ {[%clk 0:03:00.8]} 4... c6 {[%clk 0:03:00.5]} 5. Rxb1 {[%clk 0:02:58.2]}
5... Qxd5 {[%clk 0:03:00.5]} 6. Nf3 {[%clk 0:02:49.9]} 6... Nf6 {[%clk
0:03:00.8]} 7. e3 {[%clk 0:02:37.6]} 7... Nbd7 {[%clk 0:03:00.6]} 8. Qc2 {[%clk
0:02:24.3]} 8... e5 {[%clk 0:02:58]} 9. Bc4 {[%clk 0:02:13.7]} 9... Qa5+ {[%clk
0:02:57.6]} 10. Bd2 {[%clk 0:02:10.1]} 10... Bb4 {[%clk 0:02:57.5]} 11. O-O
{[%clk 0:02:01.2]} 11... Bxd2 {[%clk 0:02:56.9]} 12. Nxd2 {[%clk 0:02:00.6]}
12... exd4 {[%clk 0:02:56.8]} 13. Nb3 {[%clk 0:01:46.6]} 13... Qh5 {[%clk
0:02:44.6]} 14. Nxd4 {[%clk 0:01:45.4]} 14... O-O {[%clk 0:02:43.7]} 15. Be2
{[%clk 0:01:32.1]} 15... Qg6 {[%clk 0:02:42]} 16. Bd3 {[%clk 0:01:15.5]} 16...
Qh5 {[%clk 0:02:34.1]} 17. Nf5 {[%clk 0:01:06.2]} 17... g6 {[%clk 0:01:21.9]}
18. Ng3 {[%clk 0:01:04.7]} 18... Qc5 {[%clk 0:01:19]} 19. Qe2 {[%clk 0:01:03.9]}
19... Rad8 {[%clk 0:01:16]} 20. Rbc1 {[%clk 0:00:56.2]} 20... Qe7 {[%clk
0:01:11.4]} 21. Bb1 {[%clk 0:00:51.3]} 21... h5 {[%clk 0:01:08.5]} 22. f4 {[%clk
0:00:40.6]} 22... h4 {[%clk 0:01:05.6]} 23. Nh1 {[%clk 0:00:40.6]} 23... Rfe8
{[%clk 0:01:05.8]} 24. Rce1 {[%clk 0:00:37.1]} 24... Nc5 {[%clk 0:01:04]} 25. e4
{[%clk 0:00:23.8]} 25... Ncxe4 {[%clk 0:01:02.2]} 26. Nf2 {[%clk 0:00:23.4]}
26... Qc5 {[%clk 0:00:58.8]} 27. Bxe4 {[%clk 0:00:10.1]} 27... Rxe4 {[%clk
0:00:57.9]} 28. Qf3 {[%clk 0:00:07.7]} 28... Rxe1 {[%clk 0:00:43.6]} 29. Rxe1
{[%clk 0:00:08.6]} 29... Rd2 {[%clk 0:00:43.8]} 30. Kf1 {[%clk 0:00:08.2]} 30...
Rxb2 {[%clk 0:00:40.8]} 31. Nd3 {[%clk 0:00:08.3]} 31... Qc4 {[%clk 0:00:35.3]}
32. Qe3 {[%clk 0:00:05.8]} 32... Rxa2 {[%clk 0:00:33.1]} 33. Kg1 {[%clk
0:00:05.8]} 33... Nd5 {[%clk 0:00:30.8]} 34. Qe8+ {[%clk 0:00:05.2]} 34... Kg7
{[%clk 0:00:28.5]} 35. Ne5 {[%clk 0:00:06.1]} 35... Qxf4 {[%clk 0:00:17.2]} 36.
Nf3 {[%clk 0:00:02.2]} 36... h3 {[%clk 0:00:17.4]} 37. Rf1 {[%clk 0:00:01.5]}
37... Rxg2+ {[%clk 0:00:14.9]} 38. Kh1 {[%clk 0:00:01.3]} 38... Ne3 {[%clk
0:00:07.6]} 39. Nd2 {[%clk 0:00:01.4]} 39... Nxf1 {[%clk 0:00:06.4]} 40. Qe1
{[%clk 0:00:01.7]} 40... Nxd2 {[%clk 0:00:05.9]} 41. Qh4 {[%clk 0:00:01.2]}
41... Rg1+ {[%clk 0:00:05.7]} 42. Kxg1 {[%clk 0:00:01.1]} 42... Qxh4 {[%clk
0:00:06]} 43. Kh1 {[%clk 0:00:01.5]} 43... Qe1# {[%clk 0:00:06]} 0-1

[Event "*** Titled Tuesday Blitz"]
[Site "Chess.com"]
[Date "2020.05.26"]
[Round "10"]
[White "Thipsay"]
[Black "ftorodent"]
[Result "0-1"]
[WhiteElo "2473"]
[BlackElo "2660"]
[TimeControl "180+1"]
[EndTime "12:03:21 PDT"]
[Termination "ftorodent won by resignation"]

1. e4 {[%clk 0:03:00.9]} 1... c5 {[%clk 0:02:57.7]} 2. Nf3 {[%clk 0:03:00.7]}
2... e6 {[%clk 0:02:57.8]} 3. d4 {[%clk 0:03:00.8]} 3... cxd4 {[%clk 0:02:57.9]}
4. Nxd4 {[%clk 0:03:01.1]} 4... a6 {[%clk 0:02:58.1]} 5. Nc3 {[%clk 0:03:01]}
5... b5 {[%clk 0:02:57.7]} 6. Be2 {[%clk 0:02:59.3]} 6... Bb7 {[%clk 0:02:57.4]}
7. Bf3 {[%clk 0:02:59.4]} 7... Qc7 {[%clk 0:02:50.6]} 8. O-O {[%clk 0:02:59.2]}
8... d6 {[%clk 0:02:48.8]} 9. Re1 {[%clk 0:02:53.3]} 9... Nd7 {[%clk 0:02:44.8]}
10. Bf4 {[%clk 0:02:50.8]} 10... Ne5 {[%clk 0:02:41.6]} 11. Be2 {[%clk
0:02:42.7]} 11... Nf6 {[%clk 0:02:39.7]} 12. Bf1 {[%clk 0:02:38.4]} 12... Be7
{[%clk 0:02:38.7]} 13. a3 {[%clk 0:02:38.1]} 13... O-O {[%clk 0:02:38.3]} 14. h3
{[%clk 0:02:36.6]} 14... Rac8 {[%clk 0:02:36]} 15. Bh2 {[%clk 0:02:32.3]} 15...
Qb6 {[%clk 0:02:33.3]} 16. Kh1 {[%clk 0:02:28.5]} 16... Rxc3 {[%clk 0:02:29]}
17. bxc3 {[%clk 0:02:27.1]} 17... Nxe4 {[%clk 0:02:29.2]} 18. Bg1 {[%clk
0:02:13.3]} 18... Nxc3 {[%clk 0:02:25.3]} 19. Qd2 {[%clk 0:02:08.2]} 19... Qc7
{[%clk 0:02:13.7]} 20. f4 {[%clk 0:02:06.4]} 20... Nd7 {[%clk 0:02:09.2]} 21. f5
{[%clk 0:02:04.5]} 21... e5 {[%clk 0:02:07.5]} 22. Nf3 {[%clk 0:01:58.4]} 22...
Nf6 {[%clk 0:02:02.6]} 23. Re3 {[%clk 0:01:47.5]} 23... Rc8 {[%clk 0:02:01.5]}
24. Rae1 {[%clk 0:01:41.2]} 24... Ncd5 {[%clk 0:01:59]} 25. Rd3 {[%clk
0:01:35.6]} 25... Qxc2 {[%clk 0:01:51.7]} 26. Qa5 {[%clk 0:01:27.5]} 26... h6
{[%clk 0:01:44.3]} 27. Rd2 {[%clk 0:01:23.3]} 27... Qc7 {[%clk 0:01:42.9]} 28.
Qxc7 {[%clk 0:01:21.9]} 28... Rxc7 {[%clk 0:01:43]} 29. Kh2 {[%clk 0:01:13.1]}
29... Nb6 {[%clk 0:01:31.8]} 30. Red1 {[%clk 0:01:09.3]} 30... Nc4 {[%clk
0:01:30.6]} 31. Ra2 {[%clk 0:01:07.3]} 31... Bxf3 {[%clk 0:01:18.9]} 32. gxf3
{[%clk 0:01:06.8]} 32... d5 {[%clk 0:01:18.7]} 33. f4 {[%clk 0:01:00.8]} 33...
e4 {[%clk 0:01:17.6]} 34. Bd4 {[%clk 0:01:00.1]} 34... Nd7 {[%clk 0:01:01.3]}
35. Bxc4 {[%clk 0:00:39.9]} 35... Rxc4 {[%clk 0:00:54]} 36. Be5 {[%clk
0:00:33.5]} 36... Nb6 {[%clk 0:00:50.8]} 37. Rg2 {[%clk 0:00:25.3]} 37... f6
{[%clk 0:00:50.3]} 38. Bd4 {[%clk 0:00:25.4]} 38... Bc5 {[%clk 0:00:48.4]} 39.
Bxf6 {[%clk 0:00:22.9]} 39... Kf7 {[%clk 0:00:37.3]} 40. Bxg7 {[%clk 0:00:20.3]}
40... d4 {[%clk 0:00:33.9]} 41. Be5 {[%clk 0:00:19.8]} 41... d3 {[%clk
0:00:33.6]} 42. Rg7+ {[%clk 0:00:19.4]} 42... Kf8 {[%clk 0:00:33.6]} 43. Rc7
{[%clk 0:00:18.4]} 43... Bxa3 {[%clk 0:00:27.5]} 44. Rb7 {[%clk 0:00:12.4]}
44... Nd5 {[%clk 0:00:27]} 45. Rg1 {[%clk 0:00:11.4]} 45... Rc2+ {[%clk
0:00:24.6]} 46. Kh1 {[%clk 0:00:10.7]} 46... d2 {[%clk 0:00:24.4]} 47. Bg7+
{[%clk 0:00:10.4]} 47... Ke8 {[%clk 0:00:23.6]} 48. Bxh6 {[%clk 0:00:10.5]}
48... Rc1 {[%clk 0:00:22.8]} 49. f6 {[%clk 0:00:06.5]} 49... Rxg1+ {[%clk
0:00:22.1]} 50. Kxg1 {[%clk 0:00:06.7]} 50... d1=Q+ {[%clk 0:00:21.8]} 51. Kf2
{[%clk 0:00:07.3]} 51... Qf3+ {[%clk 0:00:21.5]} 0-1

[Event "*** Titled Tuesday Blitz"]
[Site "Chess.com"]
[Date "2020.05.26"]
[Round "10"]
[White "yobdc"]
[Black "m_ezat"]
[Result "0-1"]
[WhiteElo "2119"]
[BlackElo "2497"]
[TimeControl "180+1"]
[EndTime "12:03:22 PDT"]
[Termination "m_ezat won by checkmate"]

1. e4 {[%clk 0:03:00.9]} 1... c6 {[%clk 0:02:59.6]} 2. d4 {[%clk 0:02:59.6]}
2... d5 {[%clk 0:02:59.7]} 3. Nc3 {[%clk 0:02:59.2]} 3... dxe4 {[%clk
0:02:57.8]} 4. Nxe4 {[%clk 0:02:58.9]} 4... Nd7 {[%clk 0:02:58.3]} 5. Ng5 {[%clk
0:02:58.1]} 5... Ngf6 {[%clk 0:02:58.2]} 6. Bd3 {[%clk 0:02:55.7]} 6... e6
{[%clk 0:02:58.2]} 7. N1f3 {[%clk 0:02:46.1]} 7... Bd6 {[%clk 0:02:58.4]} 8. Qe2
{[%clk 0:02:45.6]} 8... h6 {[%clk 0:02:55.9]} 9. Ne4 {[%clk 0:02:45.5]} 9...
Nxe4 {[%clk 0:02:54.1]} 10. Qxe4 {[%clk 0:02:45.7]} 10... Qc7 {[%clk 0:02:54.7]}
11. Bd2 {[%clk 0:02:45.1]} 11... b6 {[%clk 0:02:54.2]} 12. O-O-O {[%clk
0:02:44.9]} 12... Bb7 {[%clk 0:02:54.7]} 13. Rhe1 {[%clk 0:02:44.6]} 13... O-O-O
{[%clk 0:02:55]} 14. Qe2 {[%clk 0:02:42.6]} 14... Rhe8 {[%clk 0:02:51.2]} 15.
Ba6 {[%clk 0:02:42.6]} 15... Kb8 {[%clk 0:02:51.6]} 16. Bxb7 {[%clk 0:02:42.6]}
16... Qxb7 {[%clk 0:02:51.9]} 17. Bc3 {[%clk 0:02:39.7]} 17... Nf6 {[%clk
0:02:50.7]} 18. Kb1 {[%clk 0:02:37.1]} 18... Nd5 {[%clk 0:02:48]} 19. Bd2 {[%clk
0:02:37.3]} 19... c5 {[%clk 0:02:46]} 20. c4 {[%clk 0:02:31.1]} 20... Nf6 {[%clk
0:02:45.5]} 21. Bc3 {[%clk 0:02:28.4]} 21... Ka8 {[%clk 0:02:40.2]} 22. a3
{[%clk 0:02:17.7]} 22... cxd4 {[%clk 0:02:21.2]} 23. Bxd4 {[%clk 0:02:10.8]}
23... Bc7 {[%clk 0:02:19.2]} 24. Bxf6 {[%clk 0:02:09.6]} 24... gxf6 {[%clk
0:02:16.8]} 25. Ka2 {[%clk 0:02:08.7]} 25... Kb8 {[%clk 0:02:02.8]} 26. g3
{[%clk 0:02:05]} 26... f5 {[%clk 0:01:57]} 27. Nd4 {[%clk 0:01:58.1]} 27... a6
{[%clk 0:01:51]} 28. Nb3 {[%clk 0:01:57.4]} 28... Qc6 {[%clk 0:01:43.6]} 29. Rc1
{[%clk 0:01:26.9]} 29... Rd7 {[%clk 0:01:35.3]} 30. Rc2 {[%clk 0:01:22]} 30...
Red8 {[%clk 0:01:34.5]} 31. Qh5 {[%clk 0:01:18.8]} 31... a5 {[%clk 0:01:13.9]}
32. Qxh6 {[%clk 0:01:11.5]} 32... b5 {[%clk 0:01:06.8]} 33. Qc1 {[%clk
0:01:01.5]} 33... b4 {[%clk 0:01:06.7]} 34. h4 {[%clk 0:00:42.8]} 34... a4
{[%clk 0:01:02.6]} 35. Na1 {[%clk 0:00:39.5]} 35... b3+ {[%clk 0:01:00.4]} 36.
Nxb3 {[%clk 0:00:39.8]} 36... axb3+ {[%clk 0:01:00.9]} 37. Kxb3 {[%clk
0:00:40.7]} 37... Ba5 {[%clk 0:00:57]} 38. Ree2 {[%clk 0:00:36.6]} 38... Ka8
{[%clk 0:00:45]} 39. Ka2 {[%clk 0:00:36.4]} 39... Rd1 {[%clk 0:00:42.7]} 40. Qe3
{[%clk 0:00:35.2]} 40... Qh1 {[%clk 0:00:40.9]} 41. Qc5 {[%clk 0:00:31.9]} 41...
Ra1+ {[%clk 0:00:30.6]} 42. Kb3 {[%clk 0:00:32]} 42... Qb7+ {[%clk 0:00:31.1]}
43. Ka4 {[%clk 0:00:27.1]} 43... Bb6 {[%clk 0:00:29.9]} 44. Qb5 {[%clk
0:00:25.6]} 44... Rd3 {[%clk 0:00:20.7]} 45. Qe8+ {[%clk 0:00:18.8]} 45... Ka7
{[%clk 0:00:20.1]} 46. Qb5 {[%clk 0:00:17.1]} 46... Kb8 {[%clk 0:00:18.5]} 47.
Red2 {[%clk 0:00:09.6]} 47... Qa7+ {[%clk 0:00:17.6]} 48. Kb4 {[%clk 0:00:09.7]}
48... Qe7+ {[%clk 0:00:17.5]} 49. Ka4 {[%clk 0:00:08.8]} 49... Raxa3+ {[%clk
0:00:17.6]} 50. bxa3 {[%clk 0:00:07.3]} 50... Qxa3# {[%clk 0:00:17.4]} 0-1